fUST/lending_fUST_20250523
["ID","MTS","AMOUNT","RATE_DAILY","PERIOD"]
[362104580,1747998640648,-200.0,0.0002395,9]
[362104581,1747998640659,-1000.0,0.00024,24]
[362104582,1747998640670,-160.0,0.00024,10]
[362104583,1747998640680,-422.85710789,0.00024,10]
[362104584,1747998640690,-160.0,0.00024,10]
[362104585,1747998640701,-160.0,0.00024,10]
[362104586,1747998640712,-158.28840306,0.00024016,2]
[362104587,1747998640724,-2032.66142354,0.00024029,2]
[362104588,1747998640739,-153.807562,0.00024048,5]
[362104589,1747998640749,-786.77756074,0.00024072,10]
[362104590,1747998640759,-153.807562,0.00024168,2]
[362104591,1747998640769,-4023.8098045,0.000242,14]
[362104592,1747998640779,-786.77756074,0.00024279,10]
[362104593,1747998640790,-765.30028319,0.00024284,2]
[362104594,1747998640801,-153.807562,0.00024336,8]
[362104595,1747998640811,-786.77756074,0.00024486,11]
[362104596,1747998640823,-1405.364894,0.0002449,2]
[362104597,1747998640834,-153.807562,0.000245,3]
[362104598,1747998640844,-153.807562,0.0002455,7]
[362104599,1747998640854,-786.77756074,0.00024693,11]
[362104600,1747998640864,-153.807562,0.000247,8]
[362104601,1747998640874,-153.807562,0.00024731,5]
[362104602,1747998640884,-153.807562,0.0002475,3]
[362104603,1747998640894,-707.0,0.0002483,2]
[362104604,1747998640905,-2233.0,0.0002483,2]
[362104605,1747998640914,-369.37891025,0.0002485,2]
[362104606,1747998640924,-1100.0,0.00024875,7]
[362104607,1747998640934,-2000.0,0.00024899,2]
[362104608,1747998640944,-86071.97885094,0.000249,2]
[362104609,1747998640961,-4922.84154264,0.000249,2]
[362104610,1747998640990,-160.0,0.00019691,2]
[362104611,1747998641000,-166.29205538,0.0002142,2]
[362104636,1747998845889,154.57366415,7.2e-07,2]
[362104642,1747999243246,455.912624,0.00013699,2]
[362104648,1747999697218,215.62010321,0.000125,2]
[362104651,1747999722970,301.99999932,0.0002639,120]
[362104655,1747999726364,40040.02920036,0.0001,2]
[362104658,1747999802419,273.0,0.0002639,31]
[362104659,1747999802797,272.0,0.0002639,31]
[362104660,1747999807973,1718.0,0.0002639,31]
[362104661,1747999808477,1718.0,0.0002639,31]
[362104662,1747999809883,1718.0,0.0002639,31]
[362104663,1747999810743,1718.0,0.0002639,31]
[362104664,1747999811175,1719.0,0.0002639,31]
[362104665,1747999811654,1718.0,0.0002639,31]
[362104691,1747999832471,-5000.0,0.00018435,2]
[362104692,1747999832482,-765.30028319,0.000189,2]
[362104693,1747999832492,-158.185926,0.00019757,2]
[362104694,1747999832502,-1200.0,0.00019822,2]
[362104695,1747999832512,-300.0,0.00019823,2]
[362104696,1747999832522,-300.0,0.00019823,2]
[362104697,1747999832532,-300.0,0.00019823,2]
[362104698,1747999832541,-4179.694507,0.00019826,2]
[362104699,1747999832551,-674.74464981,0.000199,2]
[362104700,1747999832562,-872.16871795,0.0002,2]
[362104701,1747999832572,-674.74464962,0.00020072,2]
[362104703,1747999832582,-455.912624,0.00020187,2]
[362104705,1747999832592,-674.74464962,0.00020245,2]
[362104707,1747999832602,-674.74464962,0.00020417,3]
[362104708,1747999832612,-933.8657,0.000205,2]
[362104709,1747999832621,-160.0,0.00020528,2]
[362104710,1747999832632,-160.0,0.00020528,2]
[362104711,1747999832641,-894.64583333,0.00020528,2]
[362104712,1747999832651,-160.0,0.00020528,2]
[362104713,1747999832660,-157.94,0.00020543,2]
[362104714,1747999832670,-430.0,0.00020589,2]
[362104715,1747999832680,-674.74464962,0.0002059,3]
[362104716,1747999832690,-674.74464962,0.00020762,3]
[362104717,1747999832699,-555.60559608,0.00020863,2]
[362104718,1747999832709,-674.74464962,0.00020934,4]
[362104719,1747999832718,-158.28840306,0.00021085,2]
[362104720,1747999832727,-674.74464962,0.00021107,4]
[362104721,1747999832737,-422.85710789,0.00021169,2]
[362104722,1747999832747,-160.0,0.00021169,2]
[362104723,1747999832756,-212.48480548,0.00021169,2]
[362104724,1747999832767,-12647.66147447,0.00021169,2]
[362104725,1747999832776,-430.0,0.00021194,2]
[362104726,1747999832786,-500.0,0.00021262,2]
[362104727,1747999832795,-500.0,0.00021262,2]
[362104728,1747999832806,-500.0,0.00021262,2]
[362104729,1747999832817,-500.0,0.00021262,2]
[362104730,1747999832828,-500.0,0.00021262,2]
[362104731,1747999832838,-500.0,0.00021262,2]
[362104732,1747999832848,-500.0,0.00021262,2]
[362104733,1747999832858,-187.49579308,0.00021262,2]
[362104734,1747999832868,-500.0,0.00021262,2]
[362104735,1747999832877,-500.0,0.00021262,2]
[362104736,1747999832886,-176.71767824,0.00021262,2]
[362104737,1747999832895,-18841.7305969,0.00021263,2]
[362104738,1747999832909,-6058.2694031,0.00021263,2]
[362104739,1747999832918,-674.74464962,0.00021279,5]
[362104740,1747999832928,-674.74464962,0.00021452,5]
[362104741,1747999832943,-430.0,0.00021468,2]
[362104742,1747999832952,-1100.0,0.00021587,2]
[362104743,1747999832962,-674.74464962,0.00021624,5]
[362104744,1747999832971,-577.527,0.00021638,2]
[362104745,1747999832981,-214.08094089,0.00021742,2]
[362104746,1747999832990,-674.74464962,0.00021797,6]
[362104747,1747999833000,-203.52747585,0.0002188,2]
[362104748,1747999833010,-674.74464962,0.00021969,6]
[362104749,1747999833020,-49.85894111,0.00022,2]
[362104750,1747999833108,-123.14105889,0.00022,2]
[362104751,1747999833118,-173.0,0.00022,2]
[362104752,1747999833128,-158.28840306,0.00022039,2]
[362104753,1747999833138,-186.61767432,0.00022141,6]
[362104754,1747999833150,-488.1269753,0.00022141,6]
[362104755,1747999833159,-151.0,0.00022245,2]
[362104756,1747999833169,-117.42668521,0.00022245,2]
[362104757,1747999833180,-89.97331479,0.00022245,2]
[362104758,1747999833190,-674.74464962,0.00022314,7]
[362104759,1747999833200,-160.0,0.00022361,3]
[362104760,1747999833210,-674.74464962,0.00022486,7]
[362104761,1747999833219,-679.0,0.0002254,2]
[362104762,1747999833229,-2233.0,0.0002254,2]
[362104763,1747999833238,-404.0,0.0002254,2]
[362104764,1747999833247,-404.0,0.0002254,2]
[362104765,1747999833257,-960.0,0.0002254,2]
[362104766,1747999833267,-674.74464962,0.00022659,7]
[362104767,1747999833276,-1100.0,0.00022683,2]
[362104768,1747999833287,-151.49577982,0.00022685,2]
[362104769,1747999833297,-151.0,0.00022685,2]
[362104770,1747999833308,-151.0,0.00022685,2]
[362104771,1747999833317,-169.78580715,0.00022685,2]
[362104772,1747999833327,-151.0,0.00022685,2]
[362104773,1747999833337,-255.71811751,0.00022685,2]
[362104774,1747999833347,-167.69978307,0.00022711,7]
[362104775,1747999833356,-500.0,0.00022711,7]
[362104776,1747999833366,-9580.92521517,0.00022711,7]
[362104782,1747999838576,-1146.91721919,0.00022711,7]
[362104783,1747999838586,-212.48480548,0.00022711,7]
[362104784,1747999838595,-500.0,0.00022738,7]
[362104785,1747999838604,-470.42787427,0.00022766,7]
[362104804,1747999840807,-510.20018879,0.00020611,2]
[362104805,1747999840829,-29.57212573,0.00022766,7]
[362104806,1747999840841,-500.0,0.00022793,7]
[362104807,1747999840852,-19.70768548,0.00022821,7]
[362104854,1747999933941,1000.0,0.0002639,120]
[362104858,1748000706239,500.0,0.00026399,30]
[362104859,1748000718092,500.0,0.00026399,30]
[362104860,1748000719979,500.0,0.00026399,30]
[362104861,1748000723265,500.0,0.00026399,30]
[362104862,1748000726970,500.0,0.00026399,30]
[362104863,1748000737952,500.0,0.00026399,30]
[362104864,1748000740048,500.0,0.00026399,30]
[362104865,1748000741442,500.0,0.00026399,30]
[362104866,1748000742725,500.0,0.00026399,30]
[362104867,1748000743926,500.0,0.00026399,30]
[362104868,1748000745300,500.0,0.00026399,30]
[362104870,1748000762566,410.321361,0.00013699,2]
[362104871,1748000790962,500.0,0.00026399,30]
[362104872,1748000792929,500.0,0.00026399,30]
[362104873,1748000794767,500.0,0.00026399,30]
[362104874,1748000795956,500.0,0.00026399,30]
[362104875,1748000797748,500.0,0.00026399,30]
[362104876,1748000798898,500.0,0.00026399,30]
[362104877,1748000800060,500.0,0.00026399,30]
[362104878,1748000801160,500.0,0.00026399,30]
[362104879,1748000803663,500.0,0.00026399,30]
[362104880,1748000805121,500.0,0.00026399,30]
[362104947,1748001032890,-5000.0,0.00018422,2]
[362104948,1748001032900,-242.17415577,0.00018508,2]
[362104949,1748001032911,-425.81581613,0.00018608,2]
[362104950,1748001032920,-354.84651344,0.00019772,2]
[362104951,1748001032931,-877.81483876,0.000199,2]
[362104952,1748001032940,-877.81483851,0.00020072,2]
[362104953,1748001032950,-1200.0,0.00020186,2]
[362104954,1748001032959,-410.321361,0.00020187,2]
[362104955,1748001032968,-877.81483851,0.00020245,2]
[362104956,1748001032979,-877.81483851,0.00020417,3]
[362104957,1748001032988,-300.0,0.00020587,2]
[362104958,1748001032997,-469.07109093,0.00020589,2]
[362104959,1748001033007,-877.81483851,0.0002059,3]
[362104960,1748001033017,-877.81483851,0.00020762,3]
[362104961,1748001033027,-877.81483851,0.00020934,4]
[362104962,1748001033036,-158.185926,0.0002102,2]
[362104963,1748001033047,-877.81483851,0.00021107,4]
[362104964,1748001033062,-160.0,0.00021228,2]
[362104965,1748001033072,-160.0,0.00021228,2]
[362104966,1748001033082,-652.48462856,0.00021228,2]
[362104967,1748001033096,-242.16120477,0.00021228,2]
[362104968,1748001033106,-160.0,0.00021228,2]
[362104969,1748001033116,-422.85710789,0.00021228,2]
[362104970,1748001033126,-12647.66147447,0.00021228,2]
[362104971,1748001033136,-212.48480548,0.00021228,2]
[362104972,1748001033147,-160.0,0.0002123,2]
[362104973,1748001033157,-430.0,0.00021233,2]
[362104974,1748001033168,-430.0,0.00021233,2]
[362104975,1748001033178,-430.0,0.00021233,2]
[362104977,1748001033188,-430.0,0.00021233,2]
[362104979,1748001033197,-430.0,0.00021233,2]
[362104981,1748001033206,-430.0,0.00021233,2]
[362104983,1748001033216,-430.0,0.00021233,2]
[362104985,1748001033227,-430.0,0.00021233,2]
[362104987,1748001033237,-430.0,0.00021233,2]
[362104989,1748001033247,-430.0,0.00021233,2]
[362104991,1748001033256,-430.0,0.00021233,2]
[362104993,1748001033266,-430.0,0.00021237,2]
[362104995,1748001033276,-430.0,0.00021237,2]
[362104996,1748001033285,-430.0,0.00021237,2]
[362104997,1748001033295,-430.0,0.00021237,2]
[362104998,1748001033308,-430.0,0.00021237,2]
[362104999,1748001033323,-430.0,0.00021237,2]
[362105000,1748001033333,-430.0,0.00021237,2]
[362105001,1748001033342,-430.0,0.00021237,2]
[362105002,1748001033352,-402.41069058,0.00021239,2]
[362105003,1748001033363,-208.61094179,0.00021239,2]
[362105004,1748001033372,-411.27,0.00021239,2]
[362105005,1748001033382,-430.0,0.00021239,2]
[362105006,1748001033391,-412.95978095,0.00021239,2]
[362105007,1748001033401,-430.0,0.00021239,2]
[362105008,1748001033412,-430.0,0.00021239,2]
[362105009,1748001033422,-430.0,0.00021239,2]
[362105010,1748001033432,-430.0,0.00021239,2]
[362105011,1748001033442,-430.0,0.00021239,2]
[362105012,1748001033452,-430.0,0.00021239,2]
[362105013,1748001033462,-430.0,0.00021239,2]
[362105014,1748001033472,-405.04348007,0.00021239,2]
[362105015,1748001033483,-400.0,0.00021239,2]
[362105016,1748001033493,-430.0,0.00021239,2]
[362105017,1748001033503,-430.0,0.00021239,2]
[362105018,1748001033513,-402.87638586,0.00021239,2]
[362105019,1748001033523,-397.07319464,0.00021239,2]
[362105020,1748001033533,-450.0,0.00021239,2]
[362105021,1748001033542,-249.77123551,0.00021239,2]
[362105022,1748001033555,-8.39544033,0.00021239,2]
[362105041,1748001038684,-160.0,0.00021228,2]
[362105042,1748001038694,-430.0,0.00021237,2]
[362105043,1748001038704,-402.11822104,0.00021239,2]
[362105044,1748001038713,-351.77842014,0.00021239,2]
[362105045,1748001038724,-300.0,0.00021242,2]
[362105046,1748001038734,-430.0,0.00021243,2]
[362105047,1748001038744,-430.0,0.00021243,2]
[362105048,1748001038755,-430.0,0.00021243,2]
[362105049,1748001038776,-430.0,0.00021243,2]
[362105050,1748001038787,-430.0,0.00021243,2]
[362105051,1748001038797,-430.0,0.00021243,2]
[362105052,1748001038812,-430.0,0.00021243,2]
[362105053,1748001038822,-430.0,0.00021243,2]
[362105054,1748001038831,-430.0,0.00021251,2]
[362105055,1748001038845,-877.81483851,0.00021279,5]
[362105056,1748001038861,-877.81483851,0.00021452,5]
[362105057,1748001038871,-430.0,0.00021507,2]
[362105058,1748001038883,-430.0,0.00021507,2]
[362105059,1748001038894,-430.0,0.00021507,2]
[362105060,1748001038903,-430.0,0.00021507,2]
[362105061,1748001038913,-430.0,0.00021507,2]
[362105062,1748001038922,-430.0,0.00021507,2]
[362105063,1748001038932,-170.98788193,0.00021511,2]
[362105064,1748001038942,-430.0,0.00021511,2]
[362105065,1748001038951,-226.86,0.00021511,2]
[362105066,1748001038960,-430.0,0.00021511,2]
[362105067,1748001038970,-430.0,0.00021511,2]
[362105068,1748001038980,-430.0,0.00021517,2]
[362105069,1748001039003,-538.17,0.00021517,2]
[362105070,1748001039015,-430.0,0.00021517,2]
[362105071,1748001039025,-430.0,0.00021517,2]
[362105072,1748001039035,-541.45,0.00021517,2]
[362105073,1748001039046,-430.0,0.00021517,2]
[362105074,1748001039060,-877.81483851,0.00021624,5]
[362105075,1748001039070,-430.0,0.00021781,2]
[362105076,1748001039081,-430.0,0.00021781,2]
[362105077,1748001039092,-430.0,0.00021781,2]
[362105078,1748001039101,-430.0,0.00021781,2]
[362105079,1748001039112,-430.0,0.00021781,2]
[362105080,1748001039121,-430.0,0.00021785,2]
[362105081,1748001039131,-430.0,0.00021785,2]
[362105082,1748001039141,-196.27,0.00021785,2]
[362105083,1748001039151,-342.67383871,0.00021791,2]
[362105084,1748001039161,-430.0,0.00021791,2]
[362105085,1748001039171,-877.81483851,0.00021797,6]
[362105086,1748001039182,-877.81483851,0.00021969,6]
[362105087,1748001039191,-430.0,0.00022055,2]
[362105088,1748001039201,-430.0,0.00022055,2]
[362105089,1748001039211,-363.71842813,0.00022055,2]
[362105090,1748001039225,-66.28157187,0.00022055,2]
[362105091,1748001039236,-430.0,0.00022059,2]
[362105092,1748001039246,-430.0,0.00022059,2]
[362105093,1748001039256,-462.77,0.00022065,2]
[362105094,1748001039266,-782.51882354,0.00022141,6]
[362105095,1748001039279,-95.29601497,0.00022141,6]
[362105096,1748001039288,-1542.0,0.00022188,2]
[362105097,1748001039299,-151.0,0.00022245,2]
[362105098,1748001039312,-151.0,0.00022245,2]
[362105099,1748001039323,-207.4,0.00022245,2]
[362105100,1748001039332,-877.81483851,0.00022314,7]
[362105101,1748001039344,-430.0,0.00022329,2]
[362105102,1748001039355,-430.0,0.00022329,2]
[362105103,1748001039365,-430.0,0.00022329,2]
[362105104,1748001039375,-430.0,0.00022333,2]
[362105105,1748001039385,-430.0,0.00022333,2]
[362105106,1748001039395,-535.57450339,0.00022486,7]
[362105107,1748001039408,-342.24033512,0.00022486,7]
[362105108,1748001039418,-1000.0,0.00022487,2]
[362105109,1748001039429,-1000.0,0.00022598,2]
[362105110,1748001039439,-430.0,0.00022603,2]
[362105111,1748001039450,-430.0,0.00022603,2]
[362105112,1748001039460,-430.0,0.00022603,2]
[362105113,1748001039471,-535.55310735,0.00022607,2]
[362105114,1748001039481,-430.0,0.00022607,2]
[362105115,1748001039491,-462.022,0.00022648,2]
[362105116,1748001039501,-2000.0,0.00022648,2]
[362105117,1748001039512,-877.81483851,0.00022659,7]
[362105118,1748001039522,-900.0,0.00022683,2]
[362105119,1748001039532,-5000.00000001,0.00022711,7]
[362105120,1748001039543,-3000.0,0.00022798,2]
[362105121,1748001039554,-153.807562,0.00022814,2]
[362105122,1748001039564,-877.81483851,0.00022831,8]
[362105123,1748001039575,-430.0,0.00022877,2]
[362105124,1748001039585,-430.0,0.00022877,2]
[362105125,1748001039596,-329.54,0.00022877,2]
[362105126,1748001039605,-430.0,0.00022881,2]
[362105127,1748001039621,-2000.0,0.00022886,2]
[362105128,1748001039631,-2000.0,0.00022899,2]
[362105129,1748001039643,-25328.09,0.00023002,10]
[362105130,1748001039654,-877.81483851,0.00023003,8]
[362105131,1748001039666,-707.0,0.00023012,2]
[362105132,1748001039677,-2233.0,0.00023012,2]
[362105133,1748001039688,-2000.0,0.00023042,2]
[362105134,1748001039698,-556.24,0.00023151,2]
[362105135,1748001039711,-430.0,0.00023151,2]
[362105136,1748001039722,-430.0,0.00023155,2]
[362105137,1748001039732,-877.81483851,0.00023176,8]
[362105138,1748001039743,-153.807562,0.00023217,8]
[362105139,1748001039753,-153.807562,0.00023223,8]
[362105140,1748001039763,-21106.74,0.00023328,10]
[362105141,1748001039772,-160.76326196,0.00023337,2]
[362105142,1748001039783,-4650.66952542,0.00023338,3]
[362105143,1748001039793,-26585.45973008,0.00023338,10]
[362105221,1748001040996,-5000.0,0.00022262,2]
[362105222,1748001041008,-3808.24026992,0.00023338,10]
[362105223,1748001041018,-877.81483851,0.00023348,9]
[362105224,1748001041028,-2000.0,0.00023398,2]
[362105225,1748001041039,-430.0,0.00023425,2]
[362105226,1748001041049,-430.0,0.00023429,2]
[362105228,1748001041066,-877.81483851,0.00023521,9]
[362105230,1748001041078,-215.0738,0.00023614,2]
[362105231,1748001041089,-877.81483851,0.00023693,9]
[362105233,1748001041099,-430.0,0.00023699,2]
[362105235,1748001041110,-264.98,0.00023703,2]
[362105237,1748001041119,-900.0,0.00023779,2]
[362105239,1748001041131,-15938.52,0.00023789,10]
[362105241,1748001041140,-3000.0,0.00023799,2]
[362105243,1748001041151,-153.807562,0.00023863,9]
[362105245,1748001041161,-877.81483851,0.00023866,10]
[362105247,1748001041171,-153.807562,0.00023944,9]
[362105249,1748001041181,-430.0,0.00023973,2]
[362105251,1748001041191,-524.66,0.00023986,3]
[362105252,1748001041201,-4000.0,0.00023996,3]
[362105253,1748001041211,-2140.38,0.00024,2]
[362105254,1748001041221,-2004.5927036,0.00024,3]
[362105255,1748001041231,-160.0,0.00024,7]
[362105256,1748001041240,-160.0,0.00024,10]
[362105257,1748001041253,-5000.99279549,0.00024,2]
[362105258,1748001041262,-176.13,0.00024,2]
[362105259,1748001041272,-176.13,0.00024,2]
[362105260,1748001041282,-176.14646473,0.00024,2]
[362105261,1748001041292,-153.807562,0.00024026,9]
[362105262,1748001041307,-877.81483851,0.00024038,10]
[362105263,1748001041318,-153.807562,0.00024048,5]
[362105264,1748001041328,-505.23806914,0.00024051,2]
[362105265,1748001041337,-160.0,0.00024058,4]
[362105266,1748001041351,-500.0,0.00024058,4]
[362105267,1748001041361,-57304.61145657,0.00024082,2]
[362105595,1748001047034,-430.0,0.00021233,2]
[362105597,1748001047044,-430.0,0.00021243,2]
[362105599,1748001047055,-430.0,0.00021517,2]
[362105601,1748001047067,-340.13345919,0.00021982,2]
[362105603,1748001047076,-164.57825951,0.00022498,2]
[362105605,1748001047086,-404.0,0.00023078,2]
[362105627,1748001047095,-23557.20107637,0.00024082,2]
[362105631,1748001047298,-404.0,0.00023078,2]
[362105633,1748001047310,-859.19276571,0.00024082,2]
[362106792,1748001813991,404.305198,0.00013699,2]
[362106853,1748002237040,-3162.5,0.00018524,2]
[362106862,1748002237267,-1837.5,0.00018524,2]
[362106863,1748002237277,-226.75563946,0.000189,2]
[362106864,1748002237288,-153.2936938,0.00019391,2]
[362106865,1748002237298,-160.0,0.00019786,2]
[362106867,1748002237308,-450.39167619,0.000199,2]
[362106868,1748002237318,-300.0,0.0001999,2]
[362106869,1748002237328,-10932.2057891,0.00019991,2]
[362106870,1748002237338,-450.39167617,0.00020072,2]
[362106871,1748002237348,-255.48948968,0.00020166,2]
[362106872,1748002237358,-404.305198,0.00020187,2]
[362106873,1748002237369,-450.39167617,0.00020245,2]
[362106875,1748002237379,-450.39167617,0.00020417,3]
[362106877,1748002237388,-450.39167617,0.0002059,3]
[362106879,1748002237398,-500.0,0.0002076,2]
[362106881,1748002237408,-430.0,0.00020761,2]
[362106883,1748002237418,-430.0,0.00020761,2]
[362106885,1748002237428,-430.0,0.00020761,2]
[362106886,1748002237438,-430.0,0.00020761,2]
[362106887,1748002237447,-430.0,0.00020761,2]
[362106889,1748002237458,-430.0,0.00020761,2]
[362106891,1748002237468,-430.0,0.00020761,2]
[362106893,1748002237478,-400.59202367,0.00020761,2]
[362106895,1748002237488,-430.0,0.00020761,2]
[362106897,1748002237499,-430.0,0.00020761,2]
[362106899,1748002237510,-430.0,0.00020761,2]
[362106901,1748002237520,-439.98042133,0.00020761,2]
[362106904,1748002237530,-430.0,0.00020761,2]
[362106906,1748002237540,-430.0,0.00020761,2]
[362106908,1748002237550,-430.0,0.00020761,2]
[362106910,1748002237560,-430.0,0.00020761,2]
[362106912,1748002237570,-430.0,0.00020761,2]
[362106914,1748002237581,-450.39167617,0.00020762,3]
[362106916,1748002237591,-160.0,0.00020767,2]
[362106918,1748002237601,-846.67159379,0.00020899,2]
[362106920,1748002237611,-450.39167617,0.00020934,4]
[362106922,1748002237621,-16804.84,0.00020977,10]
[362106924,1748002237631,-500.0,0.00020977,2]
[362106926,1748002237642,-500.0,0.00020977,2]
[362106928,1748002237652,-500.0,0.00020977,2]
[362106929,1748002237662,-500.0,0.00020977,2]
[362106930,1748002237671,-500.0,0.00020977,2]
[362106931,1748002237684,-272.74891524,0.00020977,2]
[362106932,1748002237694,-500.0,0.00020977,2]
[362106933,1748002237703,-476.94859731,0.00020977,2]
[362106934,1748002237715,-500.0,0.00020977,2]
[362106935,1748002237725,-500.0,0.00020977,2]
[362106936,1748002237738,-565.95795293,0.00020977,2]
[362106937,1748002237751,-500.0,0.00020977,2]
[362106938,1748002237761,-500.0,0.00020977,2]
[362106939,1748002237772,-500.0,0.00020977,2]
[362106940,1748002237782,-500.0,0.00020977,2]
[362106941,1748002237792,-500.0,0.00020977,2]
[362106942,1748002237802,-500.0,0.00020977,2]
[362106943,1748002237812,-500.0,0.00020977,2]
[362106944,1748002237823,-500.0,0.00020977,2]
[362106945,1748002237834,-500.0,0.00020977,2]
[362106946,1748002237844,-500.0,0.00020977,2]
[362106947,1748002237854,-500.0,0.00020977,2]
[362106948,1748002237864,-383.53341446,0.00020977,2]
[362106949,1748002237874,-500.0,0.00020977,2]
[362106950,1748002237884,-500.0,0.00020977,2]
[362106952,1748002237895,-500.0,0.00020977,2]
[362106954,1748002237905,-500.0,0.00020977,2]
[362106956,1748002237916,-500.0,0.00020977,2]
[362106958,1748002237927,-500.0,0.00020977,2]
[362106960,1748002237937,-500.0,0.00020977,2]
[362106962,1748002237948,-500.0,0.00020977,2]
[362106964,1748002237960,-500.0,0.00020977,2]
[362106966,1748002237971,-500.0,0.00020977,2]
[362106968,1748002237981,-500.0,0.00020977,2]
[362106970,1748002237991,-500.0,0.00020977,2]
[362106972,1748002238001,-500.0,0.00020977,2]
[362106974,1748002238011,-500.0,0.00020977,2]
[362106976,1748002238025,-430.55286685,0.00020977,2]
[362106978,1748002238036,-500.0,0.00020977,2]
[362106980,1748002238046,-500.0,0.00020977,2]
[362106983,1748002238057,-500.0,0.00020977,2]
[362106985,1748002238067,-398.66168719,0.00020977,2]
[362106987,1748002238078,-500.0,0.00020977,2]
[362106989,1748002238088,-500.0,0.00020977,2]
[362106991,1748002238097,-500.0,0.00020977,2]
[362106993,1748002238108,-500.0,0.00020977,2]
[362106995,1748002238118,-500.0,0.00020977,2]
[362106997,1748002238128,-500.0,0.00020977,2]
[362106999,1748002238138,-500.0,0.00020977,2]
[362107001,1748002238148,-500.0,0.00020977,2]
[362107004,1748002238159,-500.0,0.00020977,2]
[362107006,1748002238169,-500.0,0.00020977,2]
[362107008,1748002238178,-500.0,0.00020977,2]
[362107010,1748002238189,-500.0,0.00020977,2]
[362107012,1748002238199,-500.0,0.00020977,2]
[362107014,1748002238213,-500.0,0.00020977,2]
[362107016,1748002238224,-500.0,0.00020977,2]
[362107018,1748002238235,-500.0,0.00020977,2]
[362107020,1748002238247,-555.90075642,0.00020977,2]
[362107022,1748002238258,-500.0,0.00020977,2]
[362107024,1748002238270,-500.0,0.00020977,2]
[362107026,1748002238280,-500.0,0.00020977,2]
[362107028,1748002238290,-500.0,0.00020977,2]
[362107030,1748002238300,-500.0,0.00020977,2]
[362107032,1748002238310,-500.0,0.00020977,2]
[362107034,1748002238321,-500.0,0.00020977,2]
[362107036,1748002238332,-500.0,0.00020977,2]
[362107038,1748002238342,-500.0,0.00020977,2]
[362107040,1748002238353,-500.0,0.00020977,2]
[362107042,1748002238363,-500.0,0.00020977,2]
[362107044,1748002238374,-500.0,0.00020977,2]
[362107046,1748002238384,-500.0,0.00020977,2]
[362107048,1748002238394,-500.0,0.00020977,2]
[362107050,1748002238404,-500.0,0.00020977,2]
[362107052,1748002238414,-500.0,0.00020977,2]
[362107054,1748002238424,-500.0,0.00020977,2]
[362107056,1748002238434,-500.0,0.00020977,2]
[362107058,1748002238445,-500.0,0.00020977,2]
[362107060,1748002238456,-20165.81,0.00020978,10]
[362107062,1748002238472,-24198.97,0.00020987,10]
[362107064,1748002238483,-430.0,0.00020987,2]
[362107066,1748002238494,-430.0,0.00020987,2]
[362107068,1748002238504,-430.0,0.00020987,2]
[362107070,1748002238516,-430.0,0.00020987,2]
[362107071,1748002238527,-430.0,0.00020987,2]
[362107073,1748002238538,-430.0,0.00020987,2]
[362107075,1748002238552,-430.0,0.00020987,2]
[362107077,1748002238566,-430.0,0.00020987,2]
[362107079,1748002238577,-151.0,0.00020987,2]
[362107080,1748002238587,-151.0,0.00020987,2]